Workbook

Sheet 1. Forside
A1: Arwos Spildevand A/S
D8: Bilag A
D13: Indholdsfortegnelse
C16: Fane nr. 2 | D16: Samlet prisloft
C17: Fane nr. 3 | D17: Driftsomkostninger
C18: Fane nr. 4 | D18: Historiske investeringer
C19: Fane nr. 5 | D19: Gennemførte investeringer
C20: Fane nr. 6 | D20: Korrektion investeringer
C21: Fane nr. 7 | D21: Planlagte investeringer
C22: Fane nr. 8 | D22: 1:1 omkostninger
C23: Fane nr. 9 | D23: Miljø- og servicemål
C24: Fane nr. 10 | D24: Klimatilpasning
C25: Fane nr. 11 | D25: Nettofinansielle poster
C26: Fane nr. 12 | D26: Over- eller underdækning
C27: Fane nr. 13 | D27: Kontrol med indtægtsrammen og oversigt over ekstraordinære effektiviseringsgevinster

Sheet 2. Samlet prisloft
A1: ='1. Forside'!A1 -> Arwos Spildevand A/S
B4: Fane 2. Samlet prisloft for 2015
B6: Driftsomkostninger
B7: Driftsomkostninger i prisloftet for 2014 | C7: ='3. Driftsomkostninger'!C20 -> 48879696.02 | D7: kr.
B8: Bortfald af væsentlige omkostninger | C8: =-'3. Driftsomkostninger'!C16 -> 0 | D8: kr.
B9: Korrektion for prisudviklingen 2014-2015 | C9: ='3. Driftsomkostninger'!C22 -> 39103.75682 | D9: kr.
B10: Forhøjelse til effektivt niveau iht. benchmarkingen | C10: ='3. Driftsomkostninger'!C28 -> 0 | D10: kr.
B11: Korrektion for generelt effektiviseringskrav | C11: =-'3. Driftsomkostninger'!C34 -> -215070.6625 | D11: kr.
B12: Korrektion for individuelt effektiviseringskrav | C12: =-'3. Driftsomkostninger'!C43 -> -2443984.801 | D12: kr.
B13: Driftsomkostninger i alt | C13: =SUM(C7:C12) -> 46259744.32 | D13: kr. | E13: =C13 -> 46259744.32 | F13: kr.
B14: Investeringer
B15: Tillæg for historiske investeringer | C15: ='4. Historiske investeringer'!C9 -> 74068381.49 | D15: kr.
B16: Tillæg for gennemførte investeringer i 2011-2013 | C16: ='5. Gennemførte investeringer'!F38 -> 5020124.203 | D16: kr.
B17: Korrektion af tillæg for planlagte investeringer vedrørende 2013 | C17: ='6. Korrektion investeringer'!C10 -> 3198918.967 | D17: kr.
B18: Tillæg for planlagte investeringer i 2014 og 2015 | C18: ='7. Planlagte investeringer'!F31 -> 2613773.333 | D18: kr.
B19: Investeringstillæg i alt | C19: =SUM(C15:C18) -> 84901197.99 | D19: kr. | E19: =C19 -> 84901197.99 | F19: kr.
B20: Øvrige omkostninger mv.
B21: Tillæg for 1:1 omkostninger i 2015 | C21: ='8. 1-1 omkostninger'!C10 -> 2153000 | D21: kr.
B22: Tillæg vedr. revisorerklæringer og DANVA/FVD-kontingent | C22: ='8. 1-1 omkostninger'!C18 -> 128000 | D22: kr.
B23: Korrektion ift. faktiske 1:1 omkostninger i 2013 | C23: ='8. 1-1 omkostninger'!C24 -> 413904 | D23: kr.
B24: Tillæg for driftsomkostninger til miljø- og servicemål i 2015 | C24: ='9. Miljø- og servicemål'!C8 -> 0 | D24: kr.
B25: Korrektion ift. faktiske driftsomkostninger til miljø- og servicemål i 2013 | C25: ='9. Miljø- og servicemål'!C15 -> 0 | D25: kr.
B26: Tillæg for driftsomkostninger til medfinansiering af klimatilpasningsprojekter i 2015 | C26: ='10. Klimatilpasning'!C9 -> 0 | D26: kr.
B27: Korrektion ift. faktiske omkostninger til medfinansiering af klimatilpasningsprojekter i 2013 | C27: ='10. Klimatilpasning'!C16 -> 0 | D27: kr.
B28: Tillæg/fradrag for nettofinansielle poster i 2015 | C28: ='11. Nettofinansielle poster'!C9 -> 2736000 | D28: kr.
B29: Korrektion ift. faktiske nettofinansielle poster i 2013 | C29: ='11. Nettofinansielle poster'!C16 -> 1156270 | D29: kr.
B30: Øvrige omkostninger mv. i alt | C30: =SUM(C21:C29) -> 6587174 | D30: kr. | E30: =C30 -> 6587174 | F30: kr.
B31: Historisk over- eller underdækning
B32: Tillæg/fradrag for over- eller underdækning til og med 2010 | C32: ='12. Over- eller underdækning'!C11 -> 0 | D32: kr. | E32: =C32 -> 0 | F32: kr.
B33: Korrektion i forhold til tidligere indtægtsramme
B34: Korrektion for overholdelse af indtægtsramme i prisloft 2013 | C34: ='13. Kontrol med indtægtsrammen'!E27 -> 42068894.06 | D34: kr. | E34: =C34 -> 42068894.06 | F34: kr.
B35: Samlet prisloft
B36: Indtægtsramme i 2015 | E36: =SUM(E13:E34) -> 179817010.4 | F36: kr.
B37: Debiteret vandmængde i 2013 | E37: 2499826 | F37: m3
B38: Prisloft 2015 | E38: =E36/E37 -> 71.9318106 | F38: kr./m3

Sheet 3. Driftsomkostninger
A1: ='1. Forside'!A1 -> Arwos Spildevand A/S
B4: Fane 3. Driftsomkostninger
B6: Driftsomkostningerne i prisloftet for 2014
B7: Korrigerede driftsomkostninger i prisloftet for 2013 (DOiPL 2013) | C7: 50652535 | D7: kr.
B8: Prisfremskrivning 1,5 pct. | C8: =0.015*SUM(C7:C7) -> 759788.025 | D8: kr.
B9: Generelt effektiviseringskrav (0 pct.) | C9: 0 | D9: kr.
B10: Individuelt effektiviseringskrav | C10: -2532627 | D10: kr.
B11: Driftsomkostningerne i prisloftet for 2014 (DOiPL 2014) | C11: =SUM(C7:C10) -> 48879696.02 | D11: kr.
B14: Korrektion for forventet bortfald af væsentlige omkostninger
B15: Selskabets indberettede bortfald af væsentlige omkostninger inden 2015 | C15: 0 | D15: kr.
B16: Korrektion for forventet bortfald | C16: =SUM(C15:C15) -> 0 | D16: kr.
B19: Korrektion for prisudviklingen fra 2014-2015
B20: Driftsomkostningerne i prisloftet for 2014 | C20: =C11-C16 -> 48879696.02 | D20: kr.
B21: Prisudvikling 2014 - 2015 | C21: 0.08 | D21: pct.
B22: Korrektion for prisudvikling | C22: =C20*(C21/100) -> 39103.75682 | D22: kr.
B25: Eventuel forhøjelse til effektivt niveau iht. benchmarkingen
B26: Selskabets effektive driftsomkostninger iht. benchmarkingen | C26: 26111533.65 | D26: kr.
B27: Selskabets pristalskorrigerede driftsomkostninger i 2015-niveau | C27: =C20+C22 -> 48918799.78 | D27: kr.
B28: Eventuel forhøjelse til effektivt niveau | C28: =IF(C27>C26,0,C26-C27) -> 0 | D28: kr.
B31: Korrektion for generelt effektiviseringskrav
B32: Driftsomkostningerne i prisloftet for 2014 | C32: =C20 -> 48879696.02 | D32: kr.
B33: Generelt effektiviseringskrav | C33: 0.44 | D33: pct.
B34: Endeligt generelt effektiviseringskrav | C34: =C32*(C33/100) -> 215070.6625 | D34: kr.
B37: Korrektion for individuelt effektiviseringskrav
B38: Rå effektiviseringspotentiale | C38: 22768162.44 | D38: kr.
B39: Effektiviseringspotentiale efter eventuel korrektion for særlige forhold | C39: 22768162.44 | D39: kr.
B40: Effektiviseringspotentiale efter forsigtighedshensyn | C40: 16267162.86 | D40: kr.
B41: Effektiviseringspotentiale efter eventuel korrektion for sammensætning af signifikante costdrivere | C41: 16267162.86 | D41: kr.
B42: Umiddelbart effektiviseringskrav | C42: =C41/4 -> 4066790.715 | D42: kr.
B43: Endeligt individuelt effektiviseringskrav | C43: =IF(C42>0.05*C20,0.05*C20,IF(C42<0.01*C20,0,C42)) -> 2443984.801 | D43: kr.

Sheet 4. Historiske investeringer
A1: ='3. Driftsomkostninger'!A1 -> Arwos Spildevand A/S
B4: Fane 4. Historiske investeringer
B6: Tillæg for historiske investeringer
B7: Værdi af selskabets materielle anlægsaktiver pr. 1. januar 2010 | C7: 3075755881 | D7: kr.
B8: Den årlige standardafskrivning på de materielle anlægsaktiver iht. POLKA | C8: 74068381.49 | D8: kr.
B9: Tillæg i alt i 2015 | C9: =C8 -> 74068381.49 | D9: kr.

Sheet 5. Gennemførte investeringer
A1: ='4. Historiske investeringer'!A1 -> Arwos Spildevand A/S
B4: Fane 5. Gennemførte investeringer i 2010 - 2013
B6: Tillæg for gennemførte investeringer i 2013
B7: Beskrivelse af investeringen | C7: Årstal | D7: Std. levetid (år) | E7: Anskaffelses-pris (kr.) | F7: Afskrivning
B8: Brønde | C8: 2013 | D8: 75 | E8: 12370255 | F8: =E8/D8 -> 164936.7333 | G8: kr.
B9: Forafvanding, slam, Mek/EL | C9: 2013 | D9: 20 | E9: 311243 | F9: =E9/D9 -> 15562.15 | G9: kr.
B10: Forafvanding, slam, SRO | C10: 2013 | D10: 10 | E10: 68320 | F10: 6832 | G10: kr.
B11: Forklaring, SRO | C11: 2013 | D11: 10 | E11: 931369 | F11: 93136.9 | G11: kr.
B12: Installationer "mekaniske riste og SRO" Miljøklasse A. (7-20 m2) - Mek/EL | C12: 2013 | D12: 20 | E12: 129546 | F12: 6477.3 | G12: kr.
B13: Installationer "mekaniske riste og SRO" Miljøklasse A. (7-20 m2) - SRO | C13: 2013 | D13: 10 | E13: 45567 | F13: 4556.7 | G13: kr.
B14: Jordbassin Klasse A | C14: 2013 | D14: 50 | E14: 1793036 | F14: 35860.72 | G14: kr.
B15: Ledningsnet = Ø 200 mm | C15: 2013 | D15: 75 | E15: 10817919 | F15: 144238.92 | G15: kr.
B16: Pumpestationer i brønde (< 6,25 m2), Konstruktioner | C16: 2013 | D16: 50 | E16: 1800355 | F16: 36007.1 | G16: kr.
B17: Pumpestationer i brønde (< 6,25 m2), Mek/EL | C17: 2013 | D17: 20 | E17: 1475154 | F17: 73757.7 | G17: kr.
B18: Pumpestationer i brønde (< 6,25 m2), SRO | C18: 2013 | D18: 10 | E18: 119038 | F18: 11903.8 | G18: kr.
B19: Pumpestationer i underjordiske bygværker ( | C19: 2013 | D19: 20 | E19: 440478 | F19: 22023.9 | G19: kr.
B20: Pumpestationer m. overbygning (< 20 m2), Mek/EL | C20: 2013 | D20: 20 | E20: 108721 | F20: 5436.05 | G20: kr.
B21: Sand- og fedtfang, Kontruktioner | C21: 2013 | D21: 60 | E21: 2363065 | F21: 39384.41667 | G21: kr.
B22: Slutafvanding, slam - højteknologisk (centrifuger), Mek/El | C22: 2013 | D22: 20 | E22: 1558268 | F22: 77913.4 | G22: kr.
B23: Strømpeforing = Ø 200 mm | C23: 2013 | D23: 50 | E23: 434000 | F23: 8680 | G23: kr.
B24: Strømpeforing Ø 200 mm < Ledningsnet = Ø 500 mm | C24: 2013 | D24: 50 | E24: 4897110 | F24: 97942.2 | G24: kr.
B25: Strømpeforing Ø 500 mm < Ledningsnet = Ø 800 mm | C25: 2013 | D25: 50 | E25: 5991970 | F25: 119839.4 | G25: kr.
B26: Tryksatte minipumpestationer (husstandssystemer) | C26: 2013 | D26: 30 | E26: 89808 | F26: 2993.6 | G26: kr.
B27: Ø 200 mm < Ledningsnet = Ø 500 mm | C27: 2013 | D27: 75 | E27: 4717424 | F27: 62898.98667 | G27: kr.
B28: Ø 500 mm < Ledningsnet = Ø 800 mm | C28: 2013 | D28: 75 | E28: 1615996 | F28: 21546.61333 | G28: kr.
B29: Ø 800 mm < Ledningsnet = Ø 1000 mm | C29: 2013 | D29: 75 | E29: 7025857 | F29: 93678.09333 | G29: kr.
B30: Arbejdsplads | C30: 2013 | D30: 5 | E30: 125647 | F30: 25129.4 | G30: kr.
B31: Beluftningstanke, SRO | C31: 2013 | D31: 10 | E31: 86773 | F31: 8677.3 | G31: kr.
B32: Køretøjer, entreprenørmaskiner | C32: 2013 | D32: 5 | E32: 2745497 | F32: 549099.4 | G32: kr.
B33: Administrationbygninger | C33: 2013 | D33: 75 | E33: 49388700 | F33: 658516 | G33: kr.
B34: Brønde | C34: 2013 | D34: 10 | E34: 3357514 | F34: 335751.4 | G34: kr.
B35: Jordbassin Klasse A | C35: 2013 | D35: 10 | E35: 295128 | F35: 29512.8 | G35: kr.
B36: Tillæg for 2013 | F36: =SUM(F8:F35) -> 2752292.983 | G36: kr.
B37: Tillæg for 2010 - 2012 | F37: 2267831.22 | G37: kr.
B38: Samlet tillæg for gennemførte investeringer | F38: =F36+F37 -> 5020124.203 | G38: kr.

Sheet 6. Korrektion investeringer
A1: ='5. Gennemførte investeringer'!A1 -> Arwos Spildevand A/S
B4: Fane 6. Korrektion af tillæg for planlagte investeringer
B6: Korrektion af tillæg for planlagte investeringer vedr. 2013
B7: Tillæg for planlagte investeringer i 2013 i prisloft 2013 | C7: 916667 | D7: kr.
B8: Tillæg for planlagte investeringer i 2013 i prisloft 2014 | C8: 1389000 | D8: kr.
B9: Selskabets faktiske afskrivninger på gennemførte investeringer i 2013 | C9: ='5. Gennemførte investeringer'!F36 -> 2752292.983 | D9: kr.
B10: Korrektion af tillæg for planlagte investeringer vedr. 2013 | C10: =C9-C7+C9-C8 -> 3198918.967 | D10: kr.

Sheet 7. Planlagte investeringer
A1: ='6. Korrektion investeringer'!A1 -> Arwos Spildevand A/S
B4: Fane 7. Planlagte investeringer
B6: Tillæg for planlagte investeringer i 2014 og 2015
B7: Beskrivelse af investeringen | C7: Årstal | D7: Std. levetid (år) | E7: Anskaffelses-pris (kr.) | F7: Afskrivning
B8: Indløb med riste, Mek/EL | C8: 2014 | D8: 20 | E8: 3150000 | F8: =E8/D8 -> 157500 | G8: kr.
B9: Arbejdsplads | C9: 2014 | D9: 5 | E9: 1757000 | F9: =E9/D9 -> 351400 | G9: kr.
B10: Indløb med riste, Konstruktioner | C10: 2014 | D10: 60 | E10: 1300000 | F10: =E10/D10 -> 21666.66667 | G10: kr.
B11: Ø 200 mm < Ledningsnet = Ø 500 mm | C11: 2014 | D11: 75 | E11: 100000 | F11: 1333.333333 | G11: kr.
B12: Ø 200 mm < Ledningsnet = Ø 500 mm | C12: 2014 | D12: 75 | E12: 1300000 | F12: 17333.33333 | G12: kr.
B13: Tryksatte minipumpestationer (husstandssystemer) | C13: 2014 | D13: 30 | E13: 1000000 | F13: 33333.33333 | G13: kr.
B14: Ø 200 mm < Ledningsnet = Ø 500 mm | C14: 2014 | D14: 75 | E14: 9525000 | F14: 127000 | G14: kr.
B15: Ø 500 mm < Ledningsnet = Ø 800 mm | C15: 2014 | D15: 75 | E15: 28818000 | F15: 384240 | G15: kr.
B16: Ø 200 mm < Ledningsnet = Ø 500 mm | C16: 2014 | D16: 75 | E16: 10900000 | F16: 145333.3333 | G16: kr.
B17: Pumpestationer i brønde (< 6,25 m2), Konstruktioner | C17: 2014 | D17: 50 | E17: 5165000 | F17: 103300 | G17: kr.
B18: Pumpestationer i brønde (< 6,25 m2), Konstruktioner | C18: 2014 | D18: 50 | E18: 4950000 | F18: 99000 | G18: kr.
B19: Ø 200 mm < Ledningsnet = Ø 500 mm | C19: 2015 | D19: 75 | E19: 500000 | F19: 6666.666667 | G19: kr.
B20: Ø 200 mm < Ledningsnet = Ø 500 mm | C20: 2015 | D20: 75 | E20: 500000 | F20: 6666.666667 | G20: kr.
B21: Tryksatte minipumpestationer (husstandssystemer) | C21: 2015 | D21: 30 | E21: 1000000 | F21: 33333.33333 | G21: kr.
B22: Ø 200 mm < Ledningsnet = Ø 500 mm | C22: 2015 | D22: 75 | E22: 13250000 | F22: 176666.6667 | G22: kr.
B23: Ø 500 mm < Ledningsnet = Ø 800 mm | C23: 2015 | D23: 75 | E23: 28500000 | F23: 380000 | G23: kr.
B24: Ø 200 mm < Ledningsnet = Ø 500 mm | C24: 2015 | D24: 75 | E24: 6600000 | F24: 88000 | G24: kr.
B25: Pumpestationer i brønde (< 6,25 m2), Konstruktioner | C25: 2015 | D25: 50 | E25: 9000000 | F25: 180000 | G25: kr.
B26: Pumpestationer i brønde (< 6,25 m2), Konstruktioner | C26: 2015 | D26: 50 | E26: 6800000 | F26: 136000 | G26: kr.
B27: Indløb med riste, Mek/EL | C27: 2015 | D27: 20 | E27: 1300000 | F27: 65000 | G27: kr.
B28: Arbejdsplads | C28: 2015 | D28: 5 | E28: 500000 | F28: 100000 | G28: kr.
B29: Tillæg for 2014 | F29: =SUMIF(C8:C28,"2014",F8:F28) -> 1441440 | G29: kr.
B30: Tillæg for 2015 | F30: =SUMIF(C8:C28,"2015",F8:F28) -> 1172333.333 | G30: kr.
B31: Tillæg i alt | F31: =F29+F30 -> 2613773.333 | G31: kr.

Sheet 8. 1-1 omkostninger
A1: ='7. Planlagte investeringer'!A1 -> Arwos Spildevand A/S
B4: Fane 8. 1:1 omkostninger
B6: Tillæg for budgetterede 1:1 omkostninger i 2015
B7: Betaling til Forsyningssekretariatet | C7: 33000 | D7: kr.
B8: Spildevandsafgift | C8: 1800000 | D8: kr.
B9: Ejendomsskatter | C9: 320000 | D9: kr.
B10: Tillæg i alt | C10: =SUM(C7:C9) -> 2153000 | D10: kr.
B15: Tillæg for budgetterede nødvendige udgifter til revisorerklæringer samt ordinært medlemskab af DANVA og FVD i 2015
B16: Betaling for ordinært medlemskab af DANVA/FVD | C16: 113000 | D16: kr.
B17: Betaling for revisorerklæringer | C17: 15000 | D17: kr.
B18: Tillæg i alt | C18: =SUM(C16:C17) -> 128000 | D18: kr.
B21: Korrektion af tillæg for faktiske 1:1 omkostninger (inkl. revisorerklæringer og ordinært medlemskab af DANVA/FVD) i 2013
B22: Selskabets faktiske 1:1 omkostninger mv. i 2013, jf. reguleringsregnskabet | C22: 2332319 | D22: kr.
B23: Tillæg for budgetterede 1:1 omkostninger mv. i prisloft 2013 | C23: 1918415 | D23: kr.
B24: Korrektion af tillæg for budgetterede 1:1 omkostninger mv. i 2013 | C24: =C22-C23 -> 413904 | D24: kr.

Sheet 9. Miljø- og servicemål
A1: ='8. 1-1 omkostninger'!A1 -> Arwos Spildevand A/S
B4: Fane 9. Driftsomkostninger til miljø- og servicemål
B6: Tillæg for budgetterede driftsomkostninger til miljø- og servicemål i 2015
C7: 0 | D7: kr.
B8: Tillæg i alt | C8: =SUM(C7:C7) -> 0 | D8: kr.
B12: Korrektion af tillæg for faktiske driftsomkostninger til miljø- og servicemål i 2013
B13: Selskabets faktiske driftsomkostninger til miljø- og servicemål i 2013, jf. reguleringsregnskabet | C13: 0 | D13: kr.
B14: Tillæg for budgetterede driftsomkostninger til miljø- og servicemål i prisloft 2013 | C14: 0 | D14: kr.
B15: Korrektion af tillæg for budgetterede driftsomkostninger til miljø- og servicemål i 2013 | C15: =C13-C14 -> 0 | D15: kr.

Sheet 10. Klimatilpasning
A1: ='9. Miljø- og servicemål'!A1 -> Arwos Spildevand A/S
B4: Fane 10. Medfinansiering af klimatilpasningsprojekter
B7: Tillæg for budgetterede omkostninger til medfinansiering af klimatilpasningsprojekter i 2015
C8: 0 | D8: kr.
B9: Tillæg i alt | C9: =SUM(C8:C8) -> 0 | D9: kr.
B13: Korrektion af tillæg for faktiske omkostninger til medfinansiering af klimatilpasningsprojekter i 2013
B14: Selskabets faktiske driftsomkostninger til klimatilpasningsprojekter i 2013, jf. reguleringsregnskabet | C14: 0 | D14: kr.
B15: Tillæg for budgetterede driftsomkostninger til klimatilpasningsprojekter i prisloft 2013 | C15: 0 | D15: kr.
B16: Korrektion af tillæg for budgetterede omkostninger til klimatilpasningsprojekter i 2013 | C16: =C14-C15 -> 0 | D16: kr.

Sheet 11. Nettofinansielle poster
A1: ='10. Klimatilpasning'!A1 -> Arwos Spildevand A/S
B4: Fane 11. Nettofinansielle poster
B6: Tillæg for budgetterede nettofinansielle poster i 2015
B7: Budgetterede renteudgifter og gebyrer i 2015 | C7: 2736000 | D7: kr.
B8: Budgetterede renteindtægter i 2015 | C8: 0 | D8: kr.
B9: Tillæg/fradrag i alt | C9: =C7-C8 -> 2736000 | D9: kr.
B13: Korrektion af tillæg for faktiske nettofinansielle poster i 2013
B14: Selskabets faktiske nettofinansielle poster i 2013, jf. reguleringsregnskabet | C14: 1496270 | D14: kr.
B15: Tillæg for budgetterede nettofinansielle poster i prisloft 2013 | C15: 340000 | D15: kr.
B16: Korrektion af tillæg for budgetterede nettofinansielle poster i 2013 | C16: =C14-C15 -> 1156270 | D16: kr.

Sheet 12. Over- eller underdækning (hidden)
A1: ='11. Nettofinansielle poster'!A1 -> Arwos Spildevand A/S
B4: Fane 12. Over- eller underdækning til og med 2010
B6: Tillæg/fradrag for over- eller underdækning til og med 2010
B7: Opgjort over- eller underdækning per 31. december 2010 | C7: 0 | D7: kr.
B8: Heraf beløb indregnet i prislofterne for 2012 - 2014 | C8: 0 | D8: kr.
B9: Endnu ikke indregnet over- eller underdækning | C9: =C7-C8 -> 0 | D9: kr.
B10: Resterende indregningsperiode (fastsat i prisloftet for 2012) | C10: 0 | D10: år
B11: Tillæg/fradrag i alt | C11: =IF(C7=0,0,C9/C10) -> 0 | D11: kr.

Sheet 13. Kontrol med indtægtsrammen
A1: ='12. Over- eller underdækning'!A1 -> Arwos Spildevand A/S
B4: Fane 13. Korrektion for overholdelse af indtægtsrammen i prisloftet for 2013
B6: Samlet opgørelse vedrørende overholdelse af indtægtsrammen i prisloftet for 2013
B7: Indtægtsramme i prisloftet for 2013 | E7: 135518197.1 | F7: kr.
B8: Ikke anvendt likviditet vedrørende investeringer i 2013
B9: Tillæg for historiske investeringer | C9: 74226178.25 | D9: kr.
B10: Tillæg for gennemførte investeringer i 2011 | C10: 1404033 | D10: kr.
B11: Korrektion af tillæg for planlagte investeringer i 2011 | C11: 1042855 | D11: kr.
B12: Tillæg for planlagte investeringer i 2012 og 2013 | C12: 1779373 | D12: kr.
B13: Indtægter fra tilslutningsbidrag | C13: 4441800 | D13: kr.
B14: Indtægter fra salg af anlægsaktiver | C14: 0 | D14: kr.
B15: Erstatninger vedr. anlægsaktiver mv. | C15: 0 | D15: kr.
B16: Ekstraordinær effektiviseringsgevinst anvendt til investeringer | C16: 14400355.75 | D16: kr.
B17: Udgifter til investeringer | C17: -97294595 | D17: kr.
B18: Ikke anvendt likviditet vedr. investeringer i alt | C18: =SUM(C9:C17) -> 0 | D18: kr. | E18: =IF(C18<0,0,-C18) -> 0 | F18: kr.
B19: Ekstraordinære effektiviseringsgevinster anvendt til takstnedsættelse
B20: Ekstraordinær effektiviseringsgevinst anvendt til takstnedsættelse | C20: 6014663 | D20: kr. | E20: =-C20 -> -6014663 | F20: kr.
B21: Korrektion af ikke opkrævet tillæg fra 2011 i prisloft 2013
B22: Korrektion af ikke opkrævet tillæg fra 2011 i prisloft 2013 | C22: 0 | D22: kr. | E22: =-C22 -> 0 | F22: kr.
B23: Indtægter fra primære aktiviteter mv.
B24: Indtægter fra kubikmetertakster, faste takster, særbidrag, målergebyrer samt andre takster og gebyrer | C24: 87434640 | D24: kr.
B25: Andre indtægter i prisloftåret, som selskabet har opnået i forbindelse med eller som følge af selskabets primære aktiviteter | C25: 0 | D25: kr.
B26: Indtægter fra primære aktiviteter mv. i alt | C26: =SUM(C24:C25) -> 87434640 | D26: kr. | E26: =-C26 -> -87434640 | F26: kr.
B27: Tillæg/fradrag i prisloftet for 2015 i alt | E27: =E7+E18+E20+E22+E26 -> 42068894.06 | F27: kr.
B31: Oversigt over ekstraordinære effektiviseringsgevinster
C33: 2012 | E33: 2013 | G33: 2014 | I33: 2015 | K33: 2016
B34: Indhentet ekstraordinær effektiviseringsgevinst | C34: 6461258 | D34: kr. | E34: 13953760.81 | F34: kr. | H34: kr. | J34: kr. | L34: kr.
B35: Gevinst anvendt til investeringer | C35: 0 | D35: kr. | E35: 14400355.75 | F35: kr. | H35: kr. | J35: kr. | L35: kr.
B36: Gevinst anvendt til takstnedsættelse | C36: 0 | D36: kr. | E36: 6014663 | F36: kr. | H36: kr. | J36: kr. | L36: kr.
B37: Korrektion for effektiviseringsgevinst der ikke er anvendt inden 4 år | C37: 0 | D37: kr. | E37: 0 | F37: kr. | H37: kr. | J37: kr. | K37: =IF(C38>SUM(E35:I36),C38-SUM(E35:I36),0)*-1 -> 0 | L37: kr.
B38: Resterende gevinst | C38: =C34-C35-C36 -> 6461258 | D38: kr. | E38: =C38+E34-E35-E36 -> 0.06372502446 | F38: kr. | G38: =E38+G34-G35-G36 -> 0.06372502446 | H38: kr. | I38: =G38+I34-I35-I36 -> 0.06372502446 | J38: kr. | K38: =K34-K35-K36+K37+I38 -> 0.06372502446 | L38: kr.

Sheet Ark1
N15: 13953760.81
N16: 446594.9363
N17: =SUM(N15:N16) -> 14400355.75
